bitfinex/quotes_BTCUSD_20240703
["timestamp","ask_amount","ask_price","bid_price","bid_amount"]
[1719980647882,0.506042,60975.0,60974.0,0.94408399]
[1719980648208,0.505042,60975.0,60974.0,0.94408399]
[1719980648417,0.506042,60975.0,60974.0,0.94408399]
[1719980648842,0.505042,60975.0,60974.0,0.94408399]
[1719980649044,0.506042,60975.0,60974.0,0.94408399]
[1719980649448,0.505042,60975.0,60974.0,0.94408399]
[1719980649773,0.506042,60975.0,60974.0,0.94408399]
[1719980649975,0.410842,60975.0,60974.0,0.94408399]
[1719980650175,0.504042,60975.0,60974.0,0.94508399]
[1719980650356,0.505042,60975.0,60974.0,0.94508399]
[1719980650853,0.504042,60975.0,60974.0,0.94508399]
[1719980651151,0.504042,60975.0,60974.0,0.94708399]
[1719980652537,0.246841,60975.0,60974.0,0.94708399]
[1719980652739,0.340041,60975.0,60974.0,0.94708399]
[1719980657137,0.504042,60975.0,60974.0,0.75338399]
[1719980657319,0.504042,60975.0,60974.0,0.57468399]
[1719980657870,0.340041,60975.0,60974.0,0.63468399]
[1719980658495,0.06226468,60975.0,60974.0,0.63468399]
[1719980659781,0.246001,60975.0,60974.0,0.63468399]
[1719980660078,0.503202,60975.0,60974.0,0.63468399]
[1719980661204,0.503202,60975.0,60974.0,0.57468399]
[1719980661374,0.503202,60975.0,60974.0,0.63468399]
[1719980661578,0.503202,60975.0,60974.0,0.57468399]
[1719980662160,0.503202,60975.0,60974.0,0.63468399]
[1719980662333,0.503202,60975.0,60974.0,0.57468399]
[1719980662686,0.503202,60975.0,60974.0,0.63468399]
[1719980662878,0.339201,60975.0,60974.0,0.63468399]
[1719980663860,0.503202,60975.0,60974.0,0.63468399]
[1719980664086,0.339201,60975.0,60974.0,0.63468399]
[1719980664485,0.339201,60975.0,60974.0,0.57468399]
[1719980664486,0.503202,60975.0,60974.0,0.57468399]
[1719980664681,0.503202,60975.0,60974.0,0.63468399]
[1719980665213,0.339201,60975.0,60974.0,0.63468399]
[1719980665618,0.23166403,60975.0,60974.0,0.63468399]
[1719980665773,0.31366403,60975.0,60974.0,0.63468399]
[1719980665981,0.47766503,60975.0,60974.0,0.63468399]
[1719980666493,0.31366403,60975.0,60974.0,0.63468399]
[1719980666660,0.47766503,60975.0,60974.0,0.63468399]
[1719980666867,0.31366403,60975.0,60974.0,0.63468399]
[1719980668948,0.246001,60975.0,60974.0,0.63468399]
[1719980669160,0.339201,60975.0,60974.0,0.63468399]
[1719980675920,0.246001,60975.0,60974.0,0.63468399]
[1719980676352,0.246001,60975.0,60974.0,0.63560799]
[1719980676736,0.246841,60975.0,60974.0,0.63560799]
[1719980678399,0.08284,60975.0,60974.0,0.63560799]
[1719980681286,0.246841,60975.0,60974.0,0.63560799]
[1719980681488,0.08284,60975.0,60974.0,0.63560799]
[1719980684339,0.08284,60975.0,60974.0,1.63560799]
[1719980686573,0.709542,60975.0,60974.0,1.63560799]
[1719980688201,0.709542,60975.0,60974.0,1.3363045]
[1719980688784,0.709542,60975.0,60974.0,1.2763045]
[1719980689042,0.709542,60975.0,60974.0,1.3363045]
[1719980689795,0.709542,60975.0,60974.0,1.003924]
[1719980689996,0.709542,60975.0,60974.0,1.2763045]
[1719980692567,0.709542,60975.0,60974.0,1.3363045]
[1719980692771,0.709542,60975.0,60974.0,1.2763045]
[1719980693382,0.709542,60975.0,60974.0,1.3363045]
[1719980693921,0.709542,60975.0,60974.0,1.2763045]
[1719980694264,0.709542,60975.0,60974.0,1.3363045]
[1719980696117,0.709542,60975.0,60974.0,1.2763045]
[1719980698114,0.709542,60975.0,60974.0,1.003924]
[1719980698325,1.0338418,60975.0,60974.0,1.003924]
[1719980699582,1.0338418,60975.0,60974.0,1.000924]
[1719980699788,1.0378418,60975.0,60974.0,1.000924]
[1719980699930,1.0428418,60975.0,60974.0,1.000924]
[1719980700329,1.0388418,60975.0,60974.0,1.000924]
[1719980701153,1.0428418,60975.0,60974.0,1.000924]
[1719980705847,1.1360418,60975.0,60974.0,1.000924]
[1719980707588,1.3000428,60975.0,60974.0,1.000924]
[1719980707829,1.4000428,60975.0,60974.0,1.000924]
[1719980710664,1.3068428,60975.0,60974.0,1.000924]
[1719980710870,1.4000428,60975.0,60974.0,1.000924]
[1719980714012,1.3999928,60975.0,60974.0,1.000924]
[1719980716938,1.3067928,60975.0,60974.0,1.000924]
[1719980717154,1.3999928,60975.0,60974.0,1.000924]
[1719980718519,1.3067928,60975.0,60974.0,1.000924]
[1719980718723,1.3999928,60975.0,60974.0,1.000924]
[1719980719440,0.9372918,60975.0,60974.0,1.000924]
[1719980722836,0.6800908,60975.0,60974.0,1.3333045]
[1719980723063,0.448991,60975.0,60974.0,1.6397045]
[1719980723868,0.612992,60975.0,60974.0,1.6397045]
[1719980724958,0.448991,60975.0,60974.0,1.6397045]
[1719980725787,0.28499,60975.0,60974.0,1.6397045]
[1719980726287,0.28499,60975.0,60974.0,1.93900799]
[1719980726288,0.20304,60975.0,60974.0,1.93900799]
[1719980726479,0.10984,60975.0,60974.0,1.93900799]
[1719980726617,0.10304,60975.0,60974.0,1.93900799]
[1719980726819,0.19904,60975.0,60974.0,1.93900799]
[1719980727271,0.10084,60975.0,60974.0,1.93900799]
[1719980727482,0.10084,60975.0,60974.0,1.94300799]
[1719980727682,0.19404,60975.0,60974.0,1.94300799]
[1719980727893,0.10084,60975.0,60974.0,1.94300799]
[1719980728091,0.00084,60975.0,60974.0,1.94300799]
[1719980728306,0.00084,60975.0,60974.0,1.94800799]
[1719980735492,0.00084,60975.0,60974.0,2.22401399]
[1719980735692,0.00084,60975.0,60974.0,2.38801799]
[1719980735912,0.00084,60975.0,60974.0,2.55202199]
[1719980736089,0.00084,60975.0,60974.0,2.38801799]
[1719980737771,0.00084,60975.0,60974.0,2.35801799]
[1719980738376,0.00084,60975.0,60974.0,2.38801799]
[1719980738606,0.00084,60975.0,60974.0,2.35801799]
[1719980740941,0.163971,60987.0,60985.0,0.29930349]
[1719980741147,0.257172,60986.0,60985.0,0.29930349]
[1719980741542,0.50313,60986.0,60985.0,0.57168399]
[1719980741939,0.50313,60986.0,60985.0,0.57268399]
[1719980742326,0.50313,60986.0,60985.0,0.57368399]
[1719980742532,0.021,60987.0,60986.0,0.29930349]
[1719980742746,0.091985,60987.0,60986.0,0.80218399]
[1719980742955,0.185185,60987.0,60986.0,0.80218399]
[1719980743160,0.1032,60987.0,60986.0,0.80218399]
[1719980743356,0.0932,60987.0,60986.0,0.80218399]
[1719980743657,0.175184,60987.0,60986.0,0.80218399]
[1719980743860,0.186184,60987.0,60986.0,0.80318399]
[1719980744219,0.186184,60987.0,60986.0,0.80418399]
[1719980744419,0.196184,60987.0,60986.0,0.80418399]
[1719980749696,0.185184,60987.0,60986.0,0.80318399]
[1719980749899,0.185184,60987.0,60986.0,0.80818399]
[1719980750242,0.081984,60987.0,60986.0,0.80718399]
[1719980750565,0.339153,60987.0,60986.0,0.64068399]
[1719980751364,0.339153,60987.0,60986.0,0.58068399]
[1719980751560,0.339153,60987.0,60986.0,0.64068399]
[1719980752194,0.339153,60987.0,60986.0,0.63568399]
[1719980752366,0.339153,60987.0,60986.0,0.63968399]
[1719980752571,0.339153,60987.0,60986.0,0.008]
[1719980752572,0.503122,60987.0,60986.0,0.008]
[1719980752862,0.804322,60987.0,60986.0,0.008]
[1719980753064,0.804322,60987.0,60986.0,0.2803805]
[1719980753803,0.804322,60987.0,60986.0,0.2763805]
[1719980754239,0.805322,60987.0,60986.0,0.2763805]
[1719980755230,0.805322,60987.0,60986.0,0.2723805]
[1719980755435,0.806322,60987.0,60986.0,0.2723805]
[1719980756157,0.805322,60987.0,60986.0,0.2723805]
[1719980756361,0.806322,60987.0,60986.0,0.2723805]
[1719980756738,0.805322,60987.0,60986.0,0.2723805]
[1719980756935,0.804322,60987.0,60986.0,0.2723805]
[1719980757171,0.804322,60987.0,60986.0,0.2733805]
[1719980757388,0.805322,60987.0,60986.0,0.2733805]
[1719980757716,0.804322,60987.0,60986.0,0.2733805]
[1719980759363,0.503122,60987.0,60986.0,0.3333805]
[1719980759569,0.409922,60987.0,60986.0,0.3333805]
[1719980761253,0.081984,60987.0,60986.0,0.63268399]
[1719980761460,0.081984,60987.0,60986.0,0.93788399]
[1719980767814,0.081982,60989.0,60988.0,0.63168399]
[1719980768069,0.245918,60996.0,60995.0,0.3323805]
[1719980768269,0.339118,60996.0,60995.0,0.3323805]
[1719980768434,0.439118,60996.0,60995.0,0.3323805]
[1719980768652,0.439118,60996.0,60991.0,0.3323805]
[1719980768653,0.081977,60992.0,60991.0,0.3323805]
[1719980768883,0.503087,60992.0,60991.0,0.3323805]
[1719980769554,0.503087,60992.0,60991.0,0.2723805]
[1719980769697,0.503087,60992.0,60991.0,0.3323805]
[1719980769904,0.509087,60992.0,60991.0,0.3333805]
[1719980770561,0.345132,60992.0,60991.0,0.3333805]
[1719980770720,0.006,60992.0,60991.0,0.63268399]
[1719980771064,0.006,60992.0,60991.0,0.77248399]
[1719980771223,0.013,60992.0,60991.0,0.77348399]
[1719980773449,0.01384,60992.0,60991.0,0.77348399]
[1719980773682,0.01384,60992.0,60991.0,1.03156299]
[1719980773856,0.01384,60992.0,60991.0,1.06156299]
[1719980774056,0.01384,60992.0,60991.0,1.22552099]
[1719980774480,0.01384,60992.0,60991.0,1.54977779]
[1719980774742,0.01384,60992.0,60991.0,1.64297779]
[1719980775634,0.01384,60992.0,60991.0,1.80493579]
[1719980775635,0.00084,60992.0,60991.0,1.80493579]
[1719980775769,0.00084,60992.0,60991.0,1.81293579]
[1719980776195,0.00084,60992.0,60991.0,1.80893579]
[1719980777010,0.00084,60992.0,60991.0,1.80493579]
[1719980777414,0.00084,60992.0,60991.0,1.80993579]
[1719980777622,0.00184,60992.0,60991.0,1.81593579]
[1719980778023,0.00184,60992.0,60991.0,1.72273579]
[1719980778386,0.00184,60992.0,60991.0,1.81593579]
[1719980780553,0.00184,60992.0,60991.0,1.72273579]
[1719980780742,0.00184,60992.0,60991.0,1.71773579]
[1719980780942,0.00084,60992.0,60991.0,1.71173579]
[1719980781144,0.00184,60992.0,60991.0,1.72273579]
[1719980781359,0.00184,60992.0,60991.0,1.71773579]
[1719980781766,0.00184,60992.0,60991.0,1.72573579]
[1719980781949,0.00184,60992.0,60991.0,1.71173579]
[1719980782142,0.00184,60992.0,60991.0,1.72373579]
[1719980782143,0.00284,60992.0,60991.0,1.72373579]
[1719980782344,0.00384,60992.0,60991.0,1.73773579]
[1719980782649,0.00270947,60992.0,60991.0,1.72573579]
[1719980783928,0.00270947,60992.0,60991.0,1.73973579]
[1719980784157,0.00370947,60992.0,60991.0,1.73973579]
[1719980784406,0.00370947,60992.0,60991.0,1.83293579]
[1719980784944,0.00370947,60992.0,60991.0,1.73973579]
[1719980785139,0.00370947,60992.0,60991.0,1.83293579]
[1719980788211,0.00357894,60992.0,60991.0,1.83293579]
[1719980789794,0.00357894,60992.0,60991.0,1.73973579]
[1719980791461,0.00357894,60992.0,60991.0,1.75988848]
[1719980792047,0.00357894,60992.0,60991.0,1.59593048]
[1719980792854,0.00257894,60992.0,60991.0,1.58193048]
[1719980793528,0.00257894,60992.0,60991.0,0.64568399]
[1719980793724,0.13457894,60992.0,60991.0,0.64568399]
[1719980794261,0.13357894,60992.0,60991.0,0.64568399]
[1719980794682,0.13357894,60992.0,60991.0,0.65968399]
[1719980794884,0.13357894,60992.0,60991.0,0.63168399]
[1719980794885,0.13257894,60992.0,60991.0,0.63168399]
[1719980795086,0.13257894,60992.0,60991.0,0.63968399]
[1719980795302,0.13357894,60992.0,60991.0,0.64868399]
[1719980795574,0.00157894,60992.0,60991.0,0.64868399]
[1719980795718,0.00057894,60992.0,60991.0,0.64068399]
[1719980796120,0.00157894,60992.0,60991.0,0.64968399]
[1719980797202,0.00157894,60992.0,60991.0,0.76166299]
[1719980798632,0.00157894,60992.0,60991.0,0.92196179]
[1719980798831,0.00157894,60992.0,60991.0,1.79733579]
[1719980799663,0.00157894,60992.0,60991.0,2.09733579]
[1719980799872,0.00057894,60992.0,60991.0,1.78833579]
[1719980800450,0.00057894,60992.0,60991.0,1.77933579]
[1719980800922,0.00057894,60992.0,60991.0,1.79333579]
[1719980801144,0.00057894,60992.0,60991.0,2.45729379]
[1719980801367,0.00057894,60992.0,60991.0,2.89429379]
[1719980801507,0.00057894,60992.0,60991.0,2.50109379]
[1719980801713,0.00057894,60992.0,60991.0,2.89429379]
[1719980805637,0.00057894,60992.0,60991.0,2.94335821]
[1719980806079,0.00057894,60992.0,60991.0,2.28097771]
[1719980806181,0.00057894,60992.0,60991.0,2.94335821]
[1719980806989,0.00057894,60992.0,60991.0,2.64428221]
[1719980807211,0.00057894,60992.0,60991.0,2.89521779]
[1719980809219,0.00057894,60992.0,60991.0,2.94428221]
[1719980809493,0.00057894,60992.0,60991.0,2.64428221]
[1719980809727,0.00057894,60992.0,60991.0,2.94428221]
[1719980809930,0.00057894,60992.0,60991.0,2.64428221]
[1719980810077,0.00057894,60992.0,60991.0,2.59521779]
[1719980810285,0.00057894,60992.0,60991.0,2.94428221]
[1719980810479,0.00057894,60992.0,60991.0,2.95265221]
[1719980810678,0.00057894,60992.0,60991.0,2.65265221]
[1719980811082,0.00057894,60992.0,60991.0,2.02342979]
[1719980811247,0.06000135,61003.0,61002.0,0.63168399]
[1719980811451,0.06000135,61003.0,61002.0,0.71364799]
[1719980811452,0.15320135,61003.0,61002.0,0.71364799]
[1719980811866,0.23516435,61003.0,61002.0,0.63168399]
[1719980812123,0.23516435,61003.0,61002.0,0.57168399]
[1719980812263,0.23516435,61003.0,61002.0,0.63168399]
[1719980812646,0.23516435,61003.0,61002.0,0.57568399]
[1719980814469,0.36016435,61003.0,61002.0,0.57568399]
[1719980814859,0.36016435,61003.0,61002.0,0.63568399]
[1719980815065,0.00837,61004.0,61003.0,0.63168399]
[1719980815262,0.00837,61004.0,61003.0,0.87757299]
[1719980816655,0.00837,61004.0,61003.0,0.90757299]
[1719980817510,0.00837,61004.0,61003.0,0.90857299]
[1719980818909,0.00837,61004.0,61003.0,0.87857299]
[1719980820689,0.00257335,61008.0,61007.0,0.3323805]
[1719980820856,0.00257335,61008.0,61007.0,0.63168399]
[1719980822153,0.00557335,61008.0,61007.0,0.63168399]
[1719980823599,0.13147335,61008.0,61007.0,0.63168399]
[1719980839224,0.21342935,61008.0,61007.0,0.63168399]
[1719980839623,0.21342935,61008.0,61007.0,0.63260799]
[1719980840018,0.21426935,61008.0,61007.0,0.63260799]
[1719980842635,0.08836935,61008.0,61007.0,0.63260799]
[1719980844712,0.085796,61008.0,61007.0,0.63260799]
[1719980844915,0.00384,61008.0,61007.0,0.63260799]
[1719980854257,0.00384,61008.0,61007.0,0.71456499]
[1719980858967,0.00384,61008.0,61007.0,0.63260799]
[1719980861760,0.00084,61009.0,61008.0,0.3323805]
[1719980863364,0.00384,61009.0,61008.0,0.3323805]
[1719980869148,0.00384,61009.0,61008.0,0.63168399]
[1719980870016,0.085795,61009.0,61008.0,0.63168399]
[1719980872971,0.086635,61009.0,61008.0,0.63168399]
[1719980879251,0.083635,61009.0,61008.0,0.63168399]
[1719980880311,0.083635,61009.0,61008.0,0.63868399]
[1719980881415,0.083635,61009.0,61008.0,0.63168399]
[1719980881777,0.083635,61009.0,61008.0,0.63868399]
[1719980882581,0.083635,61009.0,61008.0,0.63168399]
[1719980882782,0.083635,61009.0,61008.0,0.63868399]
[1719980883191,0.083635,61009.0,61008.0,0.64568399]
[1719980885666,0.247545,61009.0,61008.0,0.64568399]
[1719980887697,0.247545,61009.0,61008.0,0.31330349]
[1719980887698,0.790855,61009.0,61008.0,0.31330349]
[1719980887885,0.790855,61009.0,61008.0,0.58568399]
[1719980888640,0.790855,61009.0,61008.0,0.57868399]
[1719980888839,0.790855,61009.0,61008.0,0.57168399]
[1719980889254,0.790855,61009.0,61008.0,0.57268399]
[1719980889911,0.790855,61009.0,61008.0,0.57168399]
[1719980890213,0.790855,61009.0,61008.0,0.30030349]
[1719980891706,0.790855,61009.0,61008.0,0.57268399]
[1719980891906,0.411455,61009.0,61008.0,0.63268399]
[1719980892468,0.411455,61009.0,61008.0,0.92158399]
[1719980892469,0.083635,61009.0,61008.0,0.92158399]
[1719980892744,0.00168,61009.0,61008.0,0.92158399]
[1719980893508,0.083635,61009.0,61008.0,0.92158399]
[1719980897078,0.00168,61009.0,61008.0,0.92158399]
[1719980898317,0.00168,61009.0,61008.0,1.00353999]
[1719980898876,0.00168,61009.0,61008.0,1.16745199]
[1719980899085,0.00168,61009.0,61008.0,1.68557479]
[1719980899285,0.00168,61009.0,61008.0,1.78177479]
[1719980900158,0.00168,61009.0,61008.0,1.83001553]
[1719980900723,0.00168,61009.0,61008.0,1.78077479]
[1719980900923,0.00168,61009.0,61008.0,1.83001507]
[1719980901131,0.00168,61009.0,61008.0,1.58686279]
[1719980901308,0.00168,61009.0,61008.0,1.32675079]
[1719980901514,0.00168,61009.0,61008.0,1.02253999]
[1719980905055,0.00168,61009.0,61008.0,1.21645199]
[1719980905883,0.00168,61009.0,61008.0,1.21737599]
[1719980906320,0.00168,61009.0,61008.0,1.54158679]
[1719980907069,0.0962,61021.0,61019.0,0.29930349]
[1719980907250,0.24582,61020.0,61019.0,0.57168399]
[1719980907449,0.24582,61020.0,61019.0,0.63168399]
[1719980908680,0.24682,61020.0,61019.0,0.63168399]
[1719980909241,0.34302,61020.0,61019.0,0.29930349]
[1719980910413,0.6357,61020.0,61019.0,0.29930349]
[1719980911694,0.7895,61020.0,61019.0,0.29930349]
[1719980911823,0.7895,61020.0,61017.0,0.29930349]
[1719980911824,0.3798,61020.0,61017.0,0.29930349]
[1719980912028,0.0962,61018.0,61017.0,0.29930349]
[1719980912255,0.081947,61015.0,61014.0,0.2723805]
[1719980912570,0.457847,61015.0,61014.0,0.2723805]
[1719980912778,0.785635,61015.0,61014.0,0.2723805]
[1719980914962,0.785635,61015.0,61014.0,0.2763805]
[1719980915538,0.785635,61015.0,61014.0,0.004]
[1719980915539,0.949529,61015.0,61014.0,0.004]
[1719980915922,0.40976,61011.0,61010.0,0.57168399]
[1719980917981,0.40976,61011.0,61010.0,0.57468399]
[1719980918933,0.40976,61011.0,61010.0,0.57168399]
[1719980919211,0.40976,61011.0,61010.0,0.57268399]
[1719980919576,0.40976,61011.0,61010.0,0.57168399]
[1719980920989,0.40976,61011.0,61010.0,0.57268399]
[1719980923913,0.40976,61011.0,61010.0,0.63268399]
[1719980925251,0.40976,61011.0,61010.0,0.57268399]
[1719980926086,0.40976,61011.0,61010.0,0.63268399]
[1719980926438,0.40976,61011.0,61010.0,0.57268399]
[1719980926638,0.40976,61011.0,61010.0,0.63268399]
[1719980927138,0.40976,61011.0,61010.0,0.57268399]
[1719980927902,0.40976,61011.0,61010.0,0.63168399]
[1719980928925,0.245856,61011.0,61010.0,0.63268399]
[1719980933014,0.245844,61014.0,61013.0,0.29930349]
[1719980933264,0.245844,61014.0,61013.0,0.63168399]
[1719980935160,0.246844,61014.0,61013.0,0.63168399]
[1719980935345,0.245844,61014.0,61013.0,0.63168399]
[1719980935504,0.081948,61014.0,61013.0,0.63168399]
[1719980935909,0.245844,61014.0,61013.0,0.63168399]
[1719980936106,0.081947,61015.0,61014.0,0.3323805]
[1719980936405,0.245841,61015.0,61014.0,0.3323805]
[1719980936725,0.163889,61017.0,61016.0,0.57168399]
[1719980937049,0.260089,61017.0,61016.0,0.57168399]
[1719980937697,0.342033,61017.0,61016.0,0.57168399]
[1719980937971,0.343033,61017.0,61016.0,0.29930349]
[1719980940919,0.343033,61017.0,61016.0,0.57168399]
[1719980941165,0.343033,61017.0,61016.0,0.85168399]
[1719980942240,0.343033,61017.0,61016.0,0.91168399]
[1719980942241,0.082944,61017.0,61016.0,0.91168399]
[1719980943560,0.081944,61017.0,61016.0,0.91168399]
[1719980944247,0.17028293,61021.0,61020.0,0.2723805]
[1719980944450,0.26648293,61021.0,61020.0,0.2723805]
[1719980944852,0.34842193,61021.0,61020.0,0.2723805]
[1719980945857,0.081941,61019.0,61018.0,0.2723805]
[1719980946083,0.178141,61019.0,61018.0,0.2723805]
[1719980946416,0.16388,61020.0,61018.0,0.2723805]
[1719980946611,0.081941,61019.0,61018.0,0.2723805]
[1719980946812,0.178141,61019.0,61018.0,0.2723805]
[1719980947236,0.179141,61019.0,61018.0,0.2723805]
[1719980947837,0.082941,61019.0,61018.0,0.63168399]
[1719980949649,0.001,61019.0,61018.0,0.63168399]
[1719980950075,0.082941,61019.0,61018.0,0.63168399]
[1719980952338,0.082941,61019.0,61018.0,0.57168399]
[1719980954085,0.082941,61019.0,61018.0,0.63168399]
[1719980954918,0.001,61019.0,61018.0,0.63168399]
[1719980955114,0.001,61019.0,61018.0,0.71362699]
[1719980955409,0.001,61019.0,61018.0,1.00922699]
[1719980956148,0.001,61019.0,61018.0,0.92728399]
[1719980956355,0.001,61019.0,61018.0,1.00922699]
[1719980956679,0.02040173,61024.0,61018.0,1.00922699]
[1719980956680,0.14864373,61029.0,61025.0,0.29930349]
[1719980956836,0.39442773,61029.0,61028.0,0.2723805]
[1719980957042,0.245784,61029.0,61028.0,0.2723805]
[1719980957374,0.081929,61028.0,61027.0,0.2723805]
[1719980957571,0.178129,61028.0,61027.0,0.2723805]
[1719980957780,0.341988,61028.0,61027.0,0.2723805]
[1719980959459,0.02000821,61029.0,61027.0,0.57168399]
[1719980959691,0.081927,61030.0,61028.0,0.2723805]
[1719980959950,0.178127,61030.0,61028.0,0.2723805]
[1719980960359,0.178127,61030.0,61027.0,0.70328399]
[1719980960360,0.081928,61029.0,61027.0,0.70328399]
[1719980960556,0.081928,61029.0,61028.0,0.3323805]
[1719980961514,0.081928,61029.0,61028.0,0.3333805]
[1719980961992,0.081928,61029.0,61028.0,0.2733805]
[1719980962410,0.178128,61029.0,61028.0,0.2733805]
[1719980962822,0.178128,61029.0,61028.0,0.2723805]
[1719980963035,0.178128,61029.0,61028.0,0.2743805]
[1719980963227,0.178128,61029.0,61028.0,0.3043805]
[1719980963432,0.178128,61029.0,61028.0,0.2743805]
[1719980964194,0.341984,61029.0,61028.0,0.30130349]
[1719980964397,0.341984,61029.0,61028.0,0.57368399]
[1719980965045,0.50584,61029.0,61028.0,0.002]
[1719980965258,0.63634,61029.0,61028.0,0.002]
[1719980967063,0.54014,61029.0,61028.0,0.002]
[1719980967278,0.63634,61029.0,61028.0,0.002]
[1719980968859,0.50584,61029.0,61028.0,0.002]
[1719980969479,0.50584,61029.0,61028.0,0.3343805]
[1719980970264,0.341984,61029.0,61028.0,0.3343805]
[1719980970457,0.341984,61029.0,61028.0,0.63368399]
[1719980970458,0.081928,61029.0,61028.0,0.63368399]
[1719980971502,0.178126,61031.0,61030.0,0.57168399]
[1719980971628,0.341977,61031.0,61030.0,0.60168399]
[1719980972028,0.341977,61031.0,61030.0,0.63168399]
[1719980972294,0.341977,61031.0,61030.0,0.60168399]
[1719980972731,0.341977,61031.0,61030.0,0.57368399]
[1719980974236,0.341977,61031.0,61030.0,0.30130349]
[1719980974359,0.245777,61031.0,61030.0,0.30130349]
[1719980974576,0.341977,61031.0,61030.0,0.57368399]
[1719980975827,0.341977,61031.0,61030.0,0.30130349]
[1719980977556,0.341977,61031.0,61030.0,0.57368399]
[1719980977772,0.341977,61031.0,61030.0,0.30130349]
[1719980978302,0.245777,61031.0,61030.0,0.57368399]
[1719980978501,0.341977,61031.0,61030.0,0.57368399]
[1719980980342,0.341977,61031.0,61030.0,0.57268399]
[1719980980542,0.341977,61031.0,61030.0,0.57168399]
[1719980980916,0.341977,61031.0,61030.0,0.57368399]
[1719980981113,0.341977,61031.0,61030.0,0.57268399]
[1719980981330,0.341977,61031.0,61030.0,0.57168399]
[1719980981741,0.245777,61031.0,61030.0,0.57168399]
[1719980981950,0.341977,61031.0,61030.0,0.57168399]
[1719980982134,0.245777,61031.0,61030.0,0.57168399]
[1719980982331,0.341977,61031.0,61030.0,0.57168399]
[1719980982738,0.341977,61031.0,61030.0,0.63168399]
[1719980983917,0.341977,61031.0,61030.0,0.57168399]
[1719980985585,0.341977,61031.0,61030.0,0.63168399]
[1719980985766,0.341977,61031.0,61030.0,0.57168399]
[1719980990221,0.245777,61031.0,61030.0,0.57168399]
[1719980990425,0.341977,61031.0,61030.0,0.57168399]
[1719980991833,0.341977,61031.0,61030.0,0.63168399]
[1719980992033,0.341977,61031.0,61030.0,0.73618399]
[1719980992637,0.341977,61031.0,61030.0,0.79618399]
[1719980992834,0.341977,61031.0,61030.0,0.73618399]
[1719981002710,0.505828,61031.0,61030.0,0.29930349]
[1719981004006,0.505828,61031.0,61022.0,0.081937]
[1719981004007,0.081926,61030.0,61029.0,0.000924]
[1719981004203,1.32605912,61030.0,61029.0,0.000924]
[1719981004372,1.55878574,61030.0,61029.0,0.000924]
[1719981004567,1.55878574,61030.0,61018.0,0.000924]
[1719981004568,0.530224,61019.0,61018.0,0.000924]
[1719981004802,0.626424,61019.0,61018.0,0.000924]
[1719981005391,0.64003353,61019.0,61018.0,0.000924]
[1719981005747,0.96779953,61019.0,61018.0,0.000924]
[1719981007733,1.06657948,61019.0,61018.0,0.001924]
[1719981007940,1.21326875,61019.0,61018.0,0.001924]
[1719981008146,1.39076079,61019.0,61018.0,0.001924]
[1719981008353,1.47715175,61019.0,61018.0,0.001924]
[1719981008554,1.4907598,61019.0,61018.0,0.001924]
[1719981008778,1.5183793,61019.0,61018.0,0.001924]
[1719981008991,1.4907598,61019.0,61018.0,0.001924]
[1719981009635,1.4927598,61019.0,61018.0,0.002924]
[1719981010516,1.39597985,61019.0,61018.0,0.002924]
[1719981010848,0.69119805,61019.0,61018.0,0.002924]
[1719981011071,0.78739649,61019.0,61018.0,0.002924]
[1719981011488,0.77379,61019.0,61018.0,0.002924]
[1719981012641,0.349824,61019.0,61018.0,0.6220045]
[1719981012791,0.1002,61019.0,61018.0,0.92130799]
[1719981014768,0.0982,61019.0,61018.0,0.92030799]
[1719981015246,0.0992,61019.0,61018.0,0.92030799]
[1719981015827,0.0992,61019.0,61018.0,0.91930799]
[1719981015828,0.0972,61019.0,61018.0,0.91930799]
[1719981016229,0.0992,61019.0,61018.0,0.91930799]
[1719981022259,0.181141,61019.0,61018.0,0.85930799]
[1719981022455,0.181141,61019.0,61018.0,0.000924]
[1719981022456,0.345024,61019.0,61018.0,0.000924]
[1719981022689,0.508907,61019.0,61018.0,0.000924]
[1719981023290,0.52251106,61019.0,61018.0,0.000924]
[1719981023505,0.68639406,61019.0,61018.0,0.000924]
[1719981023705,0.84669289,61019.0,61018.0,0.000924]
[1719981026160,0.75049289,61019.0,61018.0,0.000924]
[1719981026425,0.84669289,61019.0,61018.0,0.000924]
[1719981026627,0.95222074,61019.0,61018.0,0.000924]
[1719981026826,0.95222064,61019.0,61018.0,0.000924]
[1719981027032,0.84669279,61019.0,61018.0,0.000924]
[1719981029001,0.59786879,61019.0,61018.0,0.000924]
[1719981029246,0.67980979,61019.0,61018.0,0.000924]
[1719981029429,0.84369279,61019.0,61018.0,0.000924]
[1719981029821,0.8300888,61019.0,61018.0,0.000924]
[1719981030024,0.84369011,61019.0,61018.0,0.000924]
[1719981033172,0.8300888,61019.0,61018.0,0.000924]
[1719981033350,0.84369019,61019.0,61018.0,0.000924]
[1719981033558,0.8300888,61019.0,61018.0,0.000924]
[1719981033719,0.84368992,61019.0,61018.0,0.000924]
[1719981034930,0.90805431,61019.0,61018.0,0.000924]
[1719981035137,0.84368992,61019.0,61018.0,0.000924]
[1719981036151,0.84368946,61019.0,61018.0,0.000924]
[1719981038116,0.09554166,61019.0,61018.0,0.6049045]
[1719981038323,0.16388,61020.0,61018.0,0.6049045]
[1719981038502,0.178141,61019.0,61018.0,0.6049045]
[1719981038682,0.342024,61019.0,61018.0,0.5449045]
[1719981038901,0.342024,61019.0,61018.0,0.6049045]
[1719981039130,0.342024,61019.0,61018.0,0.5449045]
[1719981039768,0.342024,61019.0,61018.0,0.272524]
[1719981039973,0.342024,61019.0,61018.0,0.000924]
[1719981041386,0.342024,61019.0,61010.0,0.000924]
[1719981041387,0.531356,61011.0,61010.0,0.000924]
[1719981041640,0.79146,61011.0,61010.0,0.000924]
[1719981042668,0.955364,61011.0,61010.0,0.000924]
[1719981043067,0.955364,61011.0,61010.0,0.001924]
[1719981043455,1.2805668,61011.0,61010.0,0.001924]
[1719981043671,1.2805668,61011.0,61007.0,0.000924]
[1719981043672,0.081956,61008.0,61007.0,0.000924]
[1719981043856,0.5700788,61008.0,61007.0,0.000924]
[1719981044194,0.8339908,61008.0,61007.0,0.000924]
[1719981044965,0.88470024,61008.0,61007.0,0.000924]
[1719981045632,0.8339908,61008.0,61007.0,0.000924]
[1719981045792,0.8449908,61008.0,61007.0,0.001924]
[1719981046207,0.8449908,61008.0,60987.0,0.56291894]
[1719981046208,0.245932,60992.0,60989.0,0.29930349]